Workbook

Sheet 汇总 (hidden)
C1: 出口厄瓜多尔物资清单
A2: 序号 | B2: 英文名称 | C2: 中文名称 | D2: 规格型号 | E2: 单位 | F2: 数量 | G2: 净重（吨） | H2: 毛重（吨） | I2: 件数 | J2: 长×宽×高（m） | K2: 体积（m3) | L2: 单价 | M2: 金额
A3: 1 | C3: 钢构件 | E3: 吨 | F3: 173.667 | G3: 173.667 | H3: 173.667 | J3: 见明细清单 | K3: 401.863 | L3: 8010 | M3: 1391072.67 | N3: =L3*F3 -> 1391072.67
A4: 2 | B4: steel structure type C | C4: 镀锌C型钢 | D4: C100*50*15*2mm | E4: 吨 | F4: 14.202 | G4: 14.202 | H4: 14.202 | I4: 7 | J4: 见明细清单 | K4: 13.742 | L4: 8010 | M4: 113758.02 | N4: 113758.02
A5: 3 | B5: Color Steel plate | C5: 彩钢瓦 | D5: 0.4mm海蓝色 | E5: 吨 | F5: 32.363 | G5: 32.363 | H5: 36.063 | I5: 4 | J5: 1.10*1.4*11 | K5: 67.76 | L5: 11925 | M5: 385893.00 | N5: 385928.775
A6: 4 | C6: 栓钉 | D6: φ16×90 | E6: 支 | F6: 13548 | G6: 1.92 | H6: 2.86 | I6: 1 | J6: 1*1*2 | K6: 2 | L6: 1.4 | M6: 18967.27 | N6: 18967.26689
A7: 5 | C7: 自攻钉 | D7: φ5.5×40，带橡胶防水垫圈 | E7: 支 | F7: 30435 | G7: 0.3 | L7: 0.1 | M7: 3043.50 | N7: 3043.502857
A8: 6 | C8: 拉铆钉 | D8: φ5×16 | E8: 支 | F8: 11573 | G8: 0.03 | L8: 0.1 | M8: 1157.29 | N8: 1157.286027
C9: 宿舍及食堂清单图纸 | D9: 宿舍及食堂清单图纸 | E9: 盒 | F9: 1 | G9: 5
C10: 合计 | E10: 元 | M10: 1913891.75 | N10: =SUM(N3:N8) -> 1913927.521

Sheet 清单 (hidden)
D1: 第 批出口厄瓜多尔物资清单
A2: 序号 | B2: 英文名称 | C2: 中文名称 | D2: 规格型号 | E2: 单位 | F2: 数量 | G2: 单价 | H2: 总金额 | I2: 箱号 | J2: 件数 | K2: 发货状态 | L2: 单重（kg) | M2: 净重（kg） | N2: 毛重 （kg） | O2: 长×宽×高（m） | P2: 体积（m3) | Q2: HS编码
A3: 1 | C3: 3.6m平台梁-1 | D3: 口250*150*4 | E3: 根 | F3: 28 | L3: 41.8 | M3: 1170.4 | O3: 1.9*0.25*0.15 | P3: 2.00 | R3: 0:品牌类型;1:出口享惠情况;2:织造方法：机制;3:种类：工作服;4:类别：男式;5:成分含量:全棉防静电;6:品牌：无;7:无;8:GTIN;9:CAS;
A4: 2 | C4: 3.6m平台梁-2 | D4: 口250*150*4 | E4: 根 | F4: 54 | L4: 100.9 | M4: 5448.6 | O4: 4.1*0.25*0.15 | P4: 8.30 | R4: 0:品牌类型;1:出口享惠情况;2:织造方法：针织;3:成分含量;100%棉4:品牌：无品牌;5:货号：无;6:GTIN;7:CAS;
A5: 3 | C5: 3.6m平台梁-3 | D5: 口100*100*3 | E5: 根 | F5: 2 | L5: 27.4 | M5: 54.8 | O5: 3*0.1*0.1 | P5: 0.06 | R5: 0:品牌类型|1:出口享惠情况|2:结构类型：深沟球轴承|3:品牌：哈轴|4:型号:6206|5:GTIN|6:CAS|7:其他
A6: 4 | C6: 3.6m平台梁-4 | D6: 口250*150*4 | E6: 根 | F6: 6 | L6: 71.4 | M6: 428.4 | O6: 2.9*0.25*0.15 | P6: 0.65
A7: 5 | C7: 3.6m平台梁-5 | D7: 口100*100*3 | E7: 根 | F7: 28 | L7: 17.8 | M7: 498.4 | O7: 1.95*0.1*0.1 | P7: 0.55
A8: 6 | C8: 3.6m平台梁-6 | D8: 口250*150*4 | E8: 根 | F8: 24 | L8: 38.2 | M8: 916.8 | O8: 1.55*0.25*0.15 | P8: 1.40
A9: 7 | C9: 3.6m平台梁-7 | D9: 口250*150*4 | E9: 根 | F9: 80 | L9: 104.6 | M9: 8368 | O9: 4.25*0.25*0.15 | P9: 12.75
A10: 8 | C10: 3.6m平台梁-8 | D10: 口250*150*4 | E10: 根 | F10: 20 | L10: 44.3 | M10: 886 | O10: 1.8*0.15*0.25 | P10: 1.35
A11: 9 | C11: 3.6m平台梁-9 | D11: 口100*100*3 | E11: 根 | F11: 144 | L11: 20.1 | M11: 2894.4 | O11: 2.2*0.1*0.1 | P11: 3.17
A12: 10 | C12: 3.6m平台梁-10 | D12: 口200*100*3 | E12: 根 | F12: 40 | L12: 29.8 | M12: 1192 | O12: 2.15*0.2*0.1 | P12: 1.72
A13: 11 | C13: 3.6m平台梁-11 | D13: 口100*100*3 | E13: 根 | F13: 112 | L13: 18.3 | M13: 2049.6 | O13: 2*0.1*0.1 | P13: 2.24
A14: 12 | C14: 3.6m平台梁-12 | D14: 口100*100*3 | E14: 根 | F14: 36 | L14: 19.6 | M14: 705.6 | O14: 2.15*0.1*0.1 | P14: 0.77
A15: 13 | C15: 3.6m平台梁-13 | D15: 口250*150*4 | E15: 根 | F15: 8 | L15: 75.1 | M15: 600.8 | O15: 3.05*0.25*0.15 | P15: 0.92
A16: 14 | C16: 3.6m平台梁-14 | D16: 口125*100*3 | E16: 根 | F16: 8 | L16: 33.5 | M16: 268 | O16: 3.25*0.125*0.1 | P16: 0.33
A17: 15 | C17: 3.6m平台梁-15 | D17: 口200*100*3 | E17: 根 | F17: 2 | L17: 40.8 | M17: 81.6 | O17: 2.95*0.2*0.1 | P17: 0.12
A18: 16 | C18: 3.6m平台梁-16 | D18: 口250*150*4 | E18: 根 | F18: 4 | L18: 72.6 | M18: 290.4 | O18: 2.95*0.25*0.15 | P18: 0.44
A19: 17 | C19: 3.6m平台梁-17 | D19: 口100*100*3 | E19: 根 | F19: 8 | L19: 27.9 | M19: 223.2 | O19: 3.05*0.1*0.1 | P19: 0.24
A20: 18 | C20: 3.6m平台梁-18 | D20: 口250*150*4 | E20: 根 | F20: 40 | L20: 40.6 | M20: 1624 | O20: 1.65*0.25*0.15 | P20: 2.48
A21: 19 | C21: 3.6m平台梁-19 | D21: 口250*150*4 | E21: 根 | F21: 40 | L21: 102.2 | M21: 4088 | O21: 4.15*0.25*0.15 | P21: 6.23
A22: 20 | C22: 6.66m平台梁-1 | D22: 口200*150*6 | E22: 根 | F22: 56 | L22: 54.1 | M22: 3029.6 | O22: 1.7*0.2*0.15 | P22: 2.86
A23: 21 | C23: 6.66m平台梁-2 | D23: 口200*150*6 | E23: 根 | F23: 32 | L23: 140.1 | M23: 4483.2 | O23: 4.4*0.2*0.15 | P23: 4.22
A24: 22 | C24: 6.66m平台梁-3 | D24: 口200*150*6 | E24: 根 | F24: 6 | L24: 95.5 | M24: 573 | O24: 3*0.2*0.15 | P24: 0.54
A25: 23 | C25: 6.66m平台梁-4 | D25: 口200*150*6 | E25: 根 | F25: 4 | L25: =455.3-L26 -> 264.5 | M25: =1821.2-M26 -> 1058 | O25: 8.3*0.2*0.15 | P25: 1.00
E26: 根 | F26: 4 | L26: =31.8*6 -> 190.8 | M26: =F26*L26 -> 763.2 | O26: 6*0.2*0.15 | P26: =6*0.2*0.15*4 -> 0.72
A27: 24 | C27: 6.66m平台梁-5 | D27: 口200*150*6 | E27: 根 | F27: 48 | L27: 138.5 | M27: 6648 | O27: 4.35*0.2*0.15 | P27: 6.26
A28: 25 | C28: 6.66m平台梁-6 | D28: 口200*150*6 | E28: 根 | F28: 16 | L28: 97.1 | M28: 1553.6 | O28: 3.05*0.2*0.15 | P28: 1.46
A29: 26 | C29: 窗梁-1 | D29: 口150*2 | E29: 根 | F29: 4 | L29: 27 | M29: 108 | O29: 2.9*0.15*0.15 | P29: 0.26
A30: 27 | C30: 窗梁-2 | D30: 口150*2 | E30: 根 | F30: 80 | L30: 17.2 | M30: 1376 | O30: 1.85*0.15*0.15 | P30: 3.33
A31: 28 | C31: 窗梁-3 | D31: 口150*2 | E31: 根 | F31: 8 | L31: 28.3 | M31: 226.4 | O31: 3.05*0.15*0.15 | P31: 0.55
A32: 29 | C32: 钢架-1 | E32: 榀 | F32: 12 | L32: 556.51 | M32: 6678.12 | O32: 11.3*2.207*0.1 | P32: =50.4877734-P33 -> 50.15
E33: 榀 | F33: 24 | L33: =13.85*0.7 -> 9.695 | M33: =L33*F33 -> 232.68 | O33: 0.7*0.2*0.1 | P33: =1.4*0.2*0.1*12 -> 0.336
A34: 30 | C34: 钢架-2 | E34: 榀 | F34: 16 | L34: 191 | M34: 3056 | O34: 6.864*1.553*0.1 | P34: 17.06
A35: 31 | C35: 钢架-3 | E35: 榀 | F35: 8 | L35: 550.9 | M35: 4407.2 | O35: 10.984*2.16*0.1 | P35: 28.47 | R35: =Q35*F35 -> 0
A36: 32 | C36: 钢架-4 | E36: 榀 | F36: 2 | L36: 374.3 | M36: 748.6 | O36: 8.459*2.21*0.1 | P36: 5.61
A37: 33 | C37: 钢架-5 | E37: 榀 | F37: 4 | L37: 303.2 | M37: 1212.8 | O37: 10.166*2.213*0.1 | P37: 13.50
A38: 34 | C38: 钢架-6 | E38: 榀 | F38: 2 | L38: =575.9-L39 -> 556.51 | M38: =L38*F38 -> 1113.02 | O38: 11.3*2.210*0.1 | P38: =8.426067-P39 -> 8.37
E39: 榀 | F39: 2 | L39: =13.85*1.4 -> 19.39 | M39: =L39*F39 -> 38.78 | O39: 1.4*0.2*0.1 | P39: =1.4*0.2*0.1*2 -> 0.056
A40: 35 | C40: 钢梯-1 | E40: 副 | F40: 4 | L40: 289.1 | M40: 1156.4 | O40: 2.617*1.425*0.25 | P40: 3.09
A41: 36 | C41: 钢梯-2 | E41: 副 | F41: 4 | L41: 370.9 | M41: 1483.6 | O41: 3.203*1.425*0.25 | P41: 4.56
A42: 37 | C42: 钢梯-3 | E42: 副 | F42: 2 | L42: 370.8 | M42: 741.6 | O42: 3.203*1.425*0.25 | P42: 2.28
A43: 38 | C43: 钢梯-4 | E43: 副 | F43: 2 | L43: 287.9 | M43: 575.8 | O43: 2.617*1.425*0.25 | P43: 1.86
A44: 39 | C44: 钢梯-5 | E44: 副 | F44: 2 | L44: 293.7 | M44: 587.4 | O44: 2.278*1.910*0.25 | P44: 2.18
A45: 40 | C45: 钢梯平台梁-1 | D45: 口200*100*3 | E45: 根 | F45: 12 | L45: 19.4 | M45: 232.8 | O45: 1.4*0.2*0.1 | P45: 0.34
A46: 41 | C46: 钢梯平台梁-2 | D46: 口250*150*4 | E46: 根 | F46: 4 | L46: 72.6 | M46: 290.4 | O46: 2.95*0.25*0.15 | P46: 0.44
A47: 42 | C47: 钢梯平台梁-3 | D47: 口200*100*3 | E47: 根 | F47: 2 | L47: 20.8 | M47: 41.6 | O47: 1.5*0.2*0.1 | P47: 0.06
A48: 43 | C48: 钢梯平台梁-4 | D48: 口250*150*4 | E48: 根 | F48: 2 | L48: 71.4 | M48: 142.8 | O48: 2.9*0.25*0.15 | P48: 0.22
A49: 44 | C49: 钢梯平台梁-5 | D49: 口250*150*4 | E49: 根 | F49: 2 | L49: 75.1 | M49: 150.2 | O49: 3.05*0.25*0.15 | P49: 0.23
A50: 45 | C50: 钢梯平台梁-6 | D50: 口200*100*3 | E50: 根 | F50: 2 | L50: 20.5 | M50: 41 | O50: 1.479*0.2*0.1 | P50: 0.06
A51: 46 | C51: 钢梯平台梁-7 | D51: 口250*150*4 | E51: 根 | F51: 2 | L51: 76.3 | M51: 152.6 | O51: 3.1*0.25*0.15 | P51: 0.23
A52: 47 | C52: 钢梯平台梁-8 | D52: 口200*100*3 | E52: 根 | F52: 2 | L52: 21.5 | M52: 43 | O52: 1.55*0.2*0.1 | P52: 0.06
A53: 48 | C53: 钢梯平台梁-9 | D53: 口250*150*4 | E53: 根 | F53: 2 | L53: 73.9 | M53: 147.8 | O53: 3*0.25*0.15 | P53: 0.23
A54: 49 | C54: 钢柱-1 | E54: 根 | F54: 12 | L54: 60.1 | M54: 721.2 | O54: 1.514*0.35*0.35 | P54: 2.23
A55: 50 | C55: 钢柱-2 | E55: 根 | F55: 174 | L55: 380.4 | M55: =L55*F55 -> 66189.6 | O55: 6.1*0.4*0.4 | P55: 169.80
A56: 51 | C56: 屋面梁-1 | D56: 口200*100*3 | E56: 根 | F56: 2 | L56: 42.2 | M56: 84.4 | O56: 3.05*0.2*0.1 | P56: 0.12
A57: 52 | C57: 屋面梁-2 | D57: 口200*100*3 | E57: 根 | F57: 4 | L57: 56.7 | M57: 226.8 | O57: 4.091*0.2*0.1 | P57: 0.33
A58: 53 | C58: 屋面梁-3 | D58: 口200*100*3 | E58: 根 | F58: 16 | L58: 10.5 | M58: 168 | O58: 0.771*0.2*0.1 | P58: 0.25
A59: 54 | C59: 屋面梁-4 | D59: 口200*100*3 | E59: 根 | F59: 16 | L59: 10.5 | M59: 168 | O59: 0.771*0.2*0.1 | P59: 0.25
A60: 55 | C60: 屋面梁-5 | D60: 口200*100*3 | E60: 根 | F60: 2 | L60: 56.1 | M60: 112.2 | O60: 4.405*0.2*0.1 | P60: 0.18
A61: 56 | C61: 屋面梁-6 | D61: 口200*100*3 | E61: 根 | F61: 32 | L61: 86.6 | M61: 2771.2 | O61: 6.268*0.2*0.1 | P61: 4.01
A62: 57 | C62: 屋面梁-7 | D62: 口200*100*3 | E62: 根 | F62: 16 | L62: 82.3 | M62: 1316.8 | O62: 6.016*0.2*0.1 | P62: 1.93
A63: 58 | C63: 屋面梁-8 | D63: 口200*100*3 | E63: 根 | F63: 16 | L63: 82.3 | M63: 1316.8 | O63: 6.016*0.2*0.1 | P63: 1.93
A64: 59 | C64: 屋面梁-9 | D64: 口200*100*3 | E64: 根 | F64: 2 | L64: 12.5 | M64: 25 | O64: 0.895*0.2*0.1 | P64: 0.04
A65: 60 | C65: 屋面梁-10 | D65: 口200*100*3 | E65: 根 | F65: 2 | L65: 22 | M65: 44 | O65: 1.631*0.2*0.1 | P65: 0.07
A66: 61 | C66: 屋面梁-11 | D66: 口200*100*3 | E66: 根 | F66: 4 | L66: 120.1 | M66: 480.4 | O66: 8.745*0.2*0.1 | P66: 0.70
A67: 62 | C67: 屋面梁-12 | D67: 口200*100*3 | E67: 根 | F67: 2 | L67: =198-L68 -> 115.2 | M67: =396-M68 -> 230.4 | O67: 8.3*0.2*0.1 | P67: 0.45
E68: 根 | F68: 2 | L68: =13.8*6 -> 82.8 | M68: =L68*F68 -> 165.6 | O68: 6*0.2*0.1 | P68: =6*0.2*0.1 -> 0.12
A69: 63 | C69: 屋面梁-13 | D69: 口200*100*3 | E69: 根 | F69: 8 | L69: 20.9 | M69: 167.2 | O69: 1.59*0.2*0.1 | P69: 0.25
A70: 64 | C70: 屋面梁-14 | D70: 口200*100*3 | E70: 根 | F70: 6 | L70: 23.3 | M70: 139.8 | O70: 1.763*0.2*0.1 | P70: 0.21
A71: 65 | C71: 屋面梁-15 | D71: 口200*100*3 | E71: 根 | F71: 4 | L71: 7.9 | M71: 31.6 | O71: 0.583*0.2*0.1 | P71: 0.05
A72: 66 | C72: 屋面梁-16 | D72: 口200*100*3 | E72: 根 | F72: 4 | L72: 7.9 | M72: 31.6 | O72: 0.583*0.2*0.1 | P72: 0.05
A73: 67 | C73: 屋面梁-17 | D73: 口200*100*3 | E73: 根 | F73: 8 | L73: 123.8 | M73: 990.4 | O73: 8.963*0.2*0.1 | P73: 1.43
A74: 68 | C74: 屋面梁-18 | D74: 口200*100*3 | E74: 根 | F74: 4 | L74: 120.1 | M74: 480.4 | O74: 8.745*0.2*0.1 | P74: 0.70
A75: 69 | C75: 圆管 | D75: φ50*3，L=1167 | E75: 根 | F75: 52 | L75: 3.95 | M75: 205.4 | O75: 1.167*0.05*0.05 | P75: 0.52
A76: 70 | C76: 圆管 | D76: φ50*3，L=6000 | E76: 根 | F76: 9 | L76: 20.2 | M76: 181.8 | O76: 6*0.05*0.05 | P76: 0.18
A77: 71 | C77: 圆管 | D77: φ30*3，L=6000 | E77: 根 | F77: 13 | L77: 11.4 | M77: 148.2 | O77: 6*0.03*0.03 | P77: 0.01
A78: 72 | C78: 扁铁 | D78: 3*100,L=6000 | E78: 根 | F78: 8 | L78: 14.1 | M78: 112.8 | O78: 6*0.1*0.003 | P78: 0.01
A79: 73 | C79: 天沟-1 | E79: 件 | F79: 4 | L79: 18.3 | M79: 73.2 | O79: 8.8*0.2*0.12 | P79: 0.84
A80: 74 | C80: 天沟-2 | E80: 件 | F80: 4 | L80: 18.3 | M80: 73.2 | O80: 8.8*0.2*0.12 | P80: 0.84
A81: 75 | C81: 天沟-3 | E81: 件 | F81: 32 | L81: 12.7 | M81: 406.4 | O81: 6.1*0.2*0.12 | P81: 4.68
A82: 76 | C82: 楼层板-1 | D82: L=1850 | E82: 件 | F82: 48 | L82: 14.16 | M82: =L82*F82 -> 679.7 | O82: 1.85*1.025*0.051 | P82: 0.26
A83: 77 | C83: 楼层板-2 | D83: L=2050 | E83: 件 | F83: 12 | L83: 15.69 | M83: 188.3 | O83: 2.05*1.025*0.051 | P83: 0.24
A84: 78 | C84: 楼层板-3 | D84: L=5350 | E84: 件 | F84: 160 | L84: 40.95 | M84: 6551.6 | O84: 5.35*1.025*0.051 | P84: 1.24
A85: 79 | C85: 楼层板-4 | D85: L=7150 | E85: 件 | F85: 230 | L85: 54.72 | M85: 12586.6 | O85: 7.15*1.025*0.051 | P85: 1.03
A86: 80 | C86: 楼层板-5 | D86: L=6400 | E86: 件 | F86: 28 | L86: 48.98 | M86: 1371.6 | O86: 6.40*1.025*0.051 | P86: 0.41
A87: 81 | C87: 楼层板-6 | D87: L=1875 | E87: 件 | F87: 24 | L87: 14.35 | M87: 344.4 | O87: 1.87*1.025*0.051 | P87: 0.23

Sheet 第三批散货轮运输构件清单
D1: 第3批出口厄瓜多尔磨矿车间物资清单
A2: 序号 | B2: 英文名称 | C2: 中文名称 | D2: 规格型号 | E2: 单位 | F2: 数量 | G2: 单价 | H2: 总金额 | I2: 箱号 | J2: 件数 | K2: 发货状态 | L2: 单重（kg) | M2: 净重（kg） | N2: 毛重 （kg） | O2: 长（mm） | P2: 宽（mm） | Q2: 高（mm） | R2: 长×宽×高（m） | S2: 体积（m3) | T2: HS编码
A3: 1 | B3: 1 | C3: N柱连接板 | D3: PL20*645 | F3: 44 | L3: 29.2 | M3: =F3*L3 -> 1284.8 | O3: 288 | P3: 645 | Q3: 20 | R3: 0.288*0.645*0.02 | S3: =O3*P3*Q3/1000000000*F3 -> 0.163
A4: 2 | B4: 5 | C4: N柱连接板 | D4: PL20*645 | F4: 688 | L4: 9.1 | M4: 6260.8 | O4: 90 | P4: 645 | Q4: 20 | R4: 0.09*0.645*0.02 | S4: 0.799
A5: 3 | B5: 6 | C5: N柱连接板 | D5: PL14*645 | F5: 126 | L5: 20.4 | M5: 2570.4 | O5: 288 | P5: 645 | Q5: 14 | R5: 0.288*0.645*0.014 | S5: 0.328
A6: 4 | B6: 7 | C6: N柱连接板 | D6: PL14*645 | F6: 1 | L6: 20.4 | M6: 20.4 | O6: 288 | P6: 645 | Q6: 14 | R6: 0.288*0.645*0.014 | S6: 0.003
A7: 5 | B7: 8 | C7: 梁连接板 | D7: PL10*353 | F7: 1 | L7: 13.9 | M7: 13.9 | O7: 353 | P7: 744 | Q7: 10 | R7: 0.353*0.744*0.01 | S7: 0.003
A8: 6 | B8: 11 | C8: 梁连接板 | D8: PL12*339 | F8: 2 | L8: 14.8 | M8: 29.6 | O8: 339 | P8: 548 | Q8: 12 | R8: 0.339*0.548*0.012 | S8: 0.004
A9: 7 | B9: 12 | C9: 梁连接板 | D9: PL12*339 | F9: 1 | L9: 13.6 | M9: 13.6 | O9: 339 | P9: 462 | Q9: 12 | R9: 0.339*0.462*0.012 | S9: 0.002
A10: 8 | B10: 13 | C10: 梁连接板 | D10: PL12*195 | F10: 1 | L10: 7.5 | M10: 7.5 | O10: 410 | P10: 195 | Q10: 12 | R10: 0.41*0.195*0.012 | S10: 0.001
A11: 9 | B11: 14 | C11: 梁连接板 | D11: PL12*339 | F11: 1 | L11: 14.7 | M11: 14.7 | O11: 339 | P11: 548 | Q11: 12 | R11: 0.339*0.548*0.012 | S11: 0.002
A12: 10 | B12: 15 | C12: 梁连接板 | D12: PL8*200 | F12: 2 | L12: 1.9 | M12: 3.8 | O12: 150 | P12: 200 | Q12: 8 | R12: 0.15*0.2*0.008 | S12: 0.000
A13: 11 | B13: 71 | C13: 梁连接板 | D13: PL20*444 | F13: 4 | L13: 38.1 | M13: 152.4 | O13: 548 | P13: 444 | Q13: 20 | R13: 0.548*0.444*0.02 | S13: 0.019
A14: 12 | B14: 72 | C14: 梁连接板 | D14: PL12*339 | F14: 2 | L14: 22.4 | M14: 44.8 | O14: 750 | P14: 339 | Q14: 12 | R14: 0.75*0.339*0.012 | S14: 0.006
A15: 13 | B15: 73 | C15: 梁连接板 | D15: PL12*195 | F15: 102 | L15: 12.3 | M15: 1254.6 | O15: 670 | P15: 195 | Q15: 12 | R15: 0.67*0.195*0.012 | S15: 0.160
A16: 14 | B16: 74 | C16: 梁连接板 | D16: PL12*339 | F16: 2 | L16: 17.1 | M16: 34.2 | O16: 339 | P16: 575 | Q16: 12 | R16: 0.339*0.575*0.012 | S16: 0.005
A17: 15 | B17: 75 | C17: 梁连接板 | D17: PL12*339 | F17: 2 | L17: 13.6 | M17: 27.2 | O17: 339 | P17: 462 | Q17: 12 | R17: 0.339*0.462*0.012 | S17: 0.004
A18: 16 | B18: 76 | C18: 梁连接板 | D18: PL12*339 | F18: 3 | L18: 14.7 | M18: 44.1 | O18: 339 | P18: 548 | Q18: 12 | R18: 0.339*0.548*0.012 | S18: 0.007
A19: 17 | B19: 77 | C19: 梁连接板 | D19: PL12*339 | F19: 3 | L19: 13.5 | M19: 40.5 | O19: 339 | P19: 457 | Q19: 12 | R19: 0.339*0.457*0.012 | S19: 0.006
A20: 18 | B20: 78 | C20: 梁连接板 | D20: PL12*195 | F20: 5 | L20: 6.4 | M20: 32 | O20: 350 | P20: 195 | Q20: 12 | R20: 0.35*0.195*0.012 | S20: 0.004
A21: 19 | B21: 79 | C21: 梁连接板 | D21: PL12*195 | F21: 2 | L21: 6.1 | M21: 12.2 | O21: 330 | P21: 195 | Q21: 12 | R21: 0.33*0.195*0.012 | S21: 0.002
A22: 20 | B22: 80 | C22: 梁连接板 | D22: PL12*339 | F22: 2 | L22: 13.7 | M22: 27.4 | O22: 339 | P22: 457 | Q22: 12 | R22: 0.339*0.457*0.012 | S22: 0.004
A23: 21 | B23: 81 | C23: 梁连接板 | D23: PL12*389 | F23: 1 | L23: 15.7 | M23: 15.7 | O23: 389 | P23: 452 | Q23: 12 | R23: 0.389*0.452*0.012 | S23: 0.002
A24: 22 | B24: 82 | C24: 梁连接板 | D24: PL12*339 | F24: 1 | L24: 14.9 | M24: 14.9 | O24: 339 | P24: 548 | Q24: 12 | R24: 0.339*0.548*0.012 | S24: 0.002
A25: 23 | B25: 83 | C25: 梁连接板 | D25: PL12*105 | F25: 5 | L25: 4.3 | M25: 21.5 | O25: 430 | P25: 105 | Q25: 12 | R25: 0.43*0.105*0.012 | S25: 0.003
A26: 24 | B26: 84 | C26: 梁连接板 | D26: PL12*105 | F26: 8 | L26: 4.3 | M26: 34.4 | O26: 432 | P26: 105 | Q26: 12 | R26: 0.432*0.105*0.012 | S26: 0.004
A27: 25 | B27: 85 | C27: 梁连接板 | D27: PL12*195 | F27: 19 | L27: 7.5 | M27: 142.5 | O27: 410 | P27: 195 | Q27: 12 | R27: 0.41*0.195*0.012 | S27: 0.018
A28: 26 | B28: 86 | C28: 梁连接板 | D28: PL12*339 | F28: 2 | L28: 22.3 | M28: 44.6 | O28: 763 | P28: 339 | Q28: 12 | R28: 0.763*0.339*0.012 | S28: 0.006
A29: 27 | B29: 87 | C29: 梁连接板 | D29: PL12*195 | F29: 2 | L29: 6.1 | M29: 12.2 | O29: 330 | P29: 195 | Q29: 12 | R29: 0.33*0.195*0.012 | S29: 0.002
A30: 28 | B30: 88 | C30: 梁连接板 | D30: PL12*195 | F30: 4 | L30: 6.2 | M30: 24.8 | O30: 340 | P30: 195 | Q30: 12 | R30: 0.34*0.195*0.012 | S30: 0.003
A31: 29 | B31: 89 | C31: 梁连接板 | D31: PL12*339 | F31: 6 | L31: 22.1 | M31: 132.6 | O31: 339 | P31: 756 | Q31: 12 | R31: 0.339*0.756*0.012 | S31: 0.018
A32: 30 | B32: 90 | C32: 梁连接板 | D32: PL12*105 | F32: 6 | L32: 4.3 | M32: 25.8 | O32: 432 | P32: 105 | Q32: 12 | R32: 0.432*0.105*0.012 | S32: 0.003
A33: 31 | B33: 91 | C33: 梁连接板 | D33: PL12*105 | F33: 1 | L33: 5 | M33: 5 | O33: 502 | P33: 105 | Q33: 12 | R33: 0.502*0.105*0.012 | S33: 0.001
A34: 32 | B34: 92 | C34: 梁连接板 | D34: PL12*339 | F34: 1 | L34: 22.1 | M34: 22.1 | O34: 339 | P34: 748 | Q34: 12 | R34: 0.339*0.748*0.012 | S34: 0.003
A35: 33 | B35: 93 | C35: 梁连接板 | D35: PL12*330 | F35: 2 | L35: 10.6 | M35: 21.2 | O35: 330 | P35: 358 | Q35: 12 | R35: 0.33*0.358*0.012 | S35: 0.003
A36: 34 | B36: 94 | C36: 梁连接板 | D36: PL12*195 | F36: 8 | L36: 7.5 | M36: 60 | O36: 410 | P36: 195 | Q36: 12 | R36: 0.41*0.195*0.012 | S36: 0.008
A37: 35 | B37: 95 | C37: 梁连接板 | D37: PL12*330 | F37: 1 | L37: 10.9 | M37: 10.9 | O37: 330 | P37: 358 | Q37: 12 | R37: 0.33*0.358*0.012 | S37: 0.001
A38: 36 | B38: 96 | C38: 梁连接板 | D38: PL12*339 | F38: 1 | L38: 22.9 | M38: 22.9 | O38: 339 | P38: 784 | Q38: 12 | R38: 0.339*0.784*0.012 | S38: 0.003
A39: 37 | B39: 97 | C39: 梁连接板 | D39: PL12*389 | F39: 4 | L39: 25.9 | M39: 103.6 | O39: 389 | P39: 748 | Q39: 12 | R39: 0.389*0.748*0.012 | S39: 0.014
A40: 38 | B40: 98 | C40: 梁连接板 | D40: PL12*359 | F40: 2 | L40: 11.9 | M40: 23.8 | O40: 359 | P40: 374 | Q40: 12 | R40: 0.359*0.374*0.012 | S40: 0.003
A41: 39 | B41: 99 | C41: 梁连接板 | D41: PL10*195 | F41: 6 | L41: 3.8 | M41: 22.8 | O41: 250 | P41: 195 | Q41: 10 | R41: 0.25*0.195*0.01 | S41: 0.003
A42: 40 | B42: 100 | C42: 梁连接板 | D42: PL10*195 | F42: 5 | L42: 2.4 | M42: 12 | O42: 160 | P42: 195 | Q42: 10 | R42: 0.16*0.195*0.01 | S42: 0.002
A43: 41 | B43: 101 | C43: 梁连接板 | D43: PL10*105 | F43: 29 | L43: 2.6 | M43: 75.4 | O43: 310 | P43: 105 | Q43: 10 | R43: 0.31*0.105*0.01 | S43: 0.009
A44: 42 | B44: 102 | C44: 梁连接板 | D44: PL10*339 | F44: 2 | L44: 6.8 | M44: 13.6 | O44: 339 | P44: 270 | Q44: 10 | R44: 0.339*0.27*0.01 | S44: 0.002
A45: 43 | B45: 103 | C45: 梁连接板 | D45: PL10*339 | F45: 2 | L45: 6.9 | M45: 13.8 | O45: 339 | P45: 272 | Q45: 10 | R45: 0.339*0.272*0.01 | S45: 0.002
A46: 44 | B46: 104 | C46: 梁连接板 | D46: PL10*339 | F46: 2 | L46: 7.2 | M46: 14.4 | O46: 339 | P46: 300 | Q46: 10 | R46: 0.339*0.3*0.01 | S46: 0.002
A47: 45 | B47: 105 | C47: 梁连接板 | D47: PL16*660 | F47: 7 | L47: 9.5 | M47: 66.5 | O47: 115 | P47: 660 | Q47: 16 | R47: 0.115*0.66*0.016 | S47: 0.009
A48: 46 | B48: 106 | C48: 梁连接板 | D48: PL6*85 | F48: 10 | L48: 0.6 | M48: 6 | O48: 160 | P48: 85 | Q48: 6 | R48: 0.16*0.085*0.006 | S48: 0.001
A49: 47 | B49: 107 | C49: 梁连接板 | D49: PL8*180 | F49: 7 | L49: 3.6 | M49: 25.2 | O49: 339 | P49: 180 | Q49: 8 | R49: 0.339*0.18*0.008 | S49: 0.003
A50: 48 | B50: 108 | C50: 梁连接板 | D50: PL8*95 | F50: 18 | L50: 1.4 | M50: 25.2 | O50: 230 | P50: 95 | Q50: 8 | R50: 0.23*0.095*0.008 | S50: 0.003
A51: 49 | B51: 109 | C51: 梁连接板 | D51: PL8*200 | F51: 6 | L51: 1.5 | M51: 9 | O51: 120 | P51: 200 | Q51: 8 | R51: 0.12*0.2*0.008 | S51: 0.001
A52: 50 | B52: 110 | C52: 梁连接板 | D52: PL8*200 | F52: 2 | L52: 1.9 | M52: 3.8 | O52: 150 | P52: 200 | Q52: 8 | R52: 0.15*0.2*0.008 | S52: 0.000
A53: 51 | B53: 111 | C53: 梁连接板 | D53: PL26*144 | F53: 1 | L53: 10.4 | M53: 10.4 | O53: 358 | P53: 144 | Q53: 26 | R53: 0.358*0.144*0.026 | S53: 0.001
A54: 52 | B54: 112 | C54: 平台托焊 | D54: PL4*40 | F54: 110 | L54: 0.5 | M54: 55 | O54: 400 | P54: 40 | Q54: 4 | R54: 0.4*0.04*0.004 | S54: 0.007
A55: 53 | B55: 113 | C55: 平台托焊 | D55: PL4*40 | F55: 18 | L55: 0.4 | M55: 7.2 | O55: 350 | P55: 40 | Q55: 4 | R55: 0.35*0.04*0.004 | S55: 0.001
A56: 54 | B56: 114 | C56: 平台托焊 | D56: PL4*40 | F56: 44 | L56: 0.5 | M56: 22 | O56: 407 | P56: 40 | Q56: 4 | R56: 0.407*0.04*0.004 | S56: 0.003
A57: 55 | B57: 115 | C57: 梯垫块1 | D57: PL10*60 | F57: 120 | L57: 0.3 | M57: 36 | O57: 60 | P57: 60 | Q57: 10 | R57: 0.06*0.06*0.01 | S57: 0.004
A58: 56 | B58: 116 | C58: 托焊板11 | D58: PL4*300 | F58: 1947 | L58: 0.4 | M58: 778.8 | O58: 40 | P58: 300 | Q58: 4 | R58: 0.04*0.3*0.004 | S58: 0.093
A59: 57 | B59: 117 | C59: 托焊板12 | D59: PL4*200 | F59: 316 | L59: 0.3 | M59: 94.8 | O59: 40 | P59: 300 | Q59: 4 | R59: 0.04*0.3*0.004 | S59: 0.015
A60: 58 | B60: 119 | C60: 梁连接板 | D60: PL12*339 | F60: 1 | L60: 14.7 | M60: 14.7 | O60: 339 | P60: 548 | Q60: 12 | R60: 0.339*0.548*0.012 | S60: 0.002
A61: 59 | B61: 120 | C61: 梁连接板 | D61: PL12*339 | F61: 1 | L61: 14.8 | M61: 14.8 | O61: 339 | P61: 548 | Q61: 12 | R61: 0.339*0.548*0.012 | S61: 0.002
A62: 60 | B62: 121(?) | C62: 梁连接板 | D62: PL12*339 | F62: 1 | L62: 13.6 | M62: 13.6 | O62: 339 | P62: 462 | Q62: 12 | R62: 0.339*0.462*0.012 | S62: 0.002
A63: 61 | B63: 123 | C63: 托焊板13 | D63: PL4*150 | F63: 20 | L63: 0.2 | M63: 4 | O63: 40 | P63: 150 | Q63: 4 | R63: 0.04*0.15*0.004 | S63: 0.000
A64: 62 | B64: 124 | C64: 梁连接板 | D64: PL10*353 | F64: 1 | L64: 13.9 | M64: 13.9 | O64: 353 | P64: 744 | Q64: 10 | R64: 0.353*0.744*0.01 | S64: 0.003
A65: 63 | B65: 125 | C65: 托焊板14 | D65: PL4*100 | F65: 118 | L65: 0.1 | M65: 11.8 | O65: 40 | P65: 100 | Q65: 4 | R65: 0.04*0.1*0.004 | S65: 0.002
A66: 64 | B66: 126 | C66: 柱垫块1 | D66: PL16*80 | F66: 64 | L66: 0.8 | M66: 51.2 | O66: 80 | P66: 80 | Q66: 16 | R66: 0.08*0.08*0.016 | S66: 0.007
A67: 65 | B67: 127 | C67: 柱脚垫片 | D67: PL20*80 | F67: 16 | L67: 1 | M67: =F67*L67 -> 16 | O67: 80 | P67: 80 | Q67: 20 | R67: 0.08*0.08*0.02 | S67: =O67*P67*Q67/1000000000*F67 -> 0.002
A68: 66 | B68: 128 | C68: 柱劲板1 | D68: PL20*144 | F68: 2 | L68: 12.3 | M68: 24.6 | O68: 144 | P68: 548 | Q68: 20 | R68: 0.144*0.548*0.02 | S68: 0.003
A69: 67 | B69: 130 | C69: 柱劲板2 | D69: PL12*144 | F69: 32 | L69: 7.4 | M69: 236.8 | O69: 144 | P69: 548 | Q69: 12 | R69: 0.144*0.548*0.012 | S69: 0.030
A70: 68 | B70: 131 | C70: 柱劲板3 | D70: PL12*194 | F70: 8 | L70: 6.5 | M70: 52 | O70: 194 | P70: 358 | Q70: 12 | R70: 0.194*0.358*0.012 | S70: 0.007
A71: 69 | B71: 132 | C71: 柱劲板4 | D71: PL10*144 | F71: 4 | L71: 6.2 | M71: 24.8 | O71: 144 | P71: 548 | Q71: 10 | R71: 0.144*0.548*0.01 | S71: 0.003
A72: 70 | B72: 133 | C72: 柱劲板5 | D72: PL10*144 | F72: 4 | L72: 3 | M72: 12 | O72: 144 | P72: 264 | Q72: 10 | R72: 0.144*0.264*0.01 | S72: 0.002
A73: 71 | B73: 134 | C73: 柱劲板7 | D73: PL14*144 | F73: 12 | L73: 4.1 | M73: 49.2 | O73: 144 | P73: 264 | Q73: 14 | R73: 0.144*0.264*0.014 | S73: 0.006
A74: 72 | B74: 135 | C74: 柱劲板8 | D74: PL14*144 | F74: 6 | L74: 8.6 | M74: 51.6 | O74: 144 | P74: 548 | Q74: 14 | R74: 0.144*0.548*0.014 | S74: 0.007
A75: 73 | B75: 136 | C75: 柱劲板9 | D75: PL16*144 | F75: 16 | L75: 9.9 | M75: 158.4 | O75: 144 | P75: 548 | Q75: 16 | R75: 0.144*0.548*0.016 | S75: 0.020
A76: 74 | B76: 137 | C76: 柱劲板10 | D76: PL8*144 | F76: 19 | L76: 4.9 | M76: 93.1 | O76: 144 | P76: 548 | Q76: 8 | R76: 0.144*0.548*0.008 | S76: 0.012
A77: 75 | B77: 138 | C77: 柱劲板11 | D77: PL8*194 | F77: 8 | L77: 4.3 | M77: 34.4 | O77: 194 | P77: 358 | Q77: 8 | R77: 0.194*0.358*0.008 | S77: 0.004
A78: 76 | B78: 139 | C78: 柱劲板12 | D78: PL26*144 | F78: 16 | L78: 7.7 | M78: 123.2 | O78: 144 | P78: 264 | Q78: 26 | R78: 0.144*0.264*0.026 | S78: 0.016
A79: 77 | B79: 140 | C79: 柱劲板13 | D79: PL26*144 | F79: 84 | L79: 16 | M79: 1344 | O79: 144 | P79: 548 | Q79: 26 | R79: 0.144*0.548*0.026 | S79: 0.172
A80: 78 | B80: 141 | C80: 柱劲板14 | D80: PL18*144 | F80: 13 | L80: 11.1 | M80: 144.3 | O80: 144 | P80: 548 | Q80: 18 | R80: 0.144*0.548*0.018 | S80: 0.018
A81: 79 | B81: 142 | C81: 柱劲板15 | D81: PL18*144 | F81: 6 | L81: 5.3 | M81: 31.8 | O81: 144 | P81: 264 | Q81: 18 | R81: 0.144*0.264*0.018 | S81: 0.004
A82: 80 | B82: 212 | C82: 柱劲板6 | D82: PL26*194 | F82: 14 | L82: 14.1 | M82: 197.4 | O82: 358 | P82: 194 | Q82: 26 | R82: 0.358*0.194*0.026 | S82: 0.025
A83: 81 | B83: CC-1 | C83: 斜撑-1 | D83: L75*6 | F83: 1 | L83: 21.1 | M83: 21.1 | O83: 1502 | P83: 158 | Q83: 100 | R83: 1.502*0.158*0.1 | S83: 0.024
A84: 82 | B84: CC-2 | C84: 斜撑-2 | D84: L75*6 | F84: 5 | L84: 21.1 | M84: 105.5 | O84: 1502 | P84: 158 | Q84: 100 | R84: 1.502*0.158*0.1 | S84: 0.119
A85: 83 | B85: CC-3 | C85: 斜撑-3 | D85: L100*8 | F85: 6 | L85: 42 | M85: 252 | O85: 1703 | P85: 208 | Q85: 120 | R85: 1.703*0.208*0.12 | S85: 0.255
A86: 84 | B86: CC-4 | C86: 斜撑-4 | D86: L100*8 | F86: 1 | L86: 27.3 | M86: 27.3 | O86: 1134 | P86: 100 | Q86: 100 | R86: 1.134*0.1*0.1 | S86: 0.011
A87: 85 | B87: CC-5 | C87: 斜撑-5 | D87: L100*8 | F87: 1 | L87: 28.2 | M87: 28.2 | O87: 1134 | P87: 208 | Q87: 120 | R87: 1.134*0.208*0.12 | S87: 0.028
A88: 86 | B88: CC-6 | C88: 斜撑-6 | D88: L100*8 | F88: 3 | L88: 50.5 | M88: 151.5 | O88: 2037 | P88: 208 | Q88: 120 | R88: 2.037*0.208*0.12 | S88: 0.153
A89: 87 | B89: CC-7 | C89: 斜撑-7 | D89: L100*8 | F89: 3 | L89: 50.5 | M89: 151.5 | O89: 2037 | P89: 208 | Q89: 120 | R89: 2.037*0.208*0.12 | S89: 0.153
A90: 88 | B90: CC-8 | C90: 斜撑-8 | D90: L100*8 | F90: 2 | L90: 47.6 | M90: 95.2 | O90: 1918 | P90: 208 | Q90: 120 | R90: 1.918*0.208*0.12 | S90: 0.096
A91: 89 | B91: CC-9 | C91: 斜撑-9 | D91: L100*8 | F91: 2 | L91: 53.9 | M91: 107.8 | O91: 2181 | P91: 208 | Q91: 120 | R91: 2.181*0.208*0.12 | S91: 0.109
A92: 90 | B92: CC-10 | C92: 斜撑-10 | D92: L100*8 | F92: 2 | L92: 53.9 | M92: 107.8 | O92: 2181 | P92: 208 | Q92: 120 | R92: 2.181*0.208*0.12 | S92: 0.109
A93: 91 | B93: KGDGT-1 | C93: 跨管道钢梯 | D93: C18B | F93: 4 | L93: 541.5 | M93: 2166 | O93: 3124 | P93: 3000 | Q93: 1070 | R93: 3.124*1.78*1.07 | S93: 40.112
A94: 92 | B94: LSC1 | C94: 角钢支撑-1 | D94: L75*8 | F94: 1 | L94: 17 | M94: 17 | O94: 1905 | P94: 75 | Q94: 75 | R94: 1.905*0.075*0.075 | S94: 0.011
A95: 93 | B95: LSC2 | C95: 角钢支撑-2 | D95: L75*8 | F95: 1 | L95: 16.2 | M95: 16.2 | O95: 1819 | P95: 75 | Q95: 75 | R95: 1.819*0.075*0.075 | S95: 0.010
A96: 94 | B96: LSC3 | C96: 角钢支撑-3 | D96: L75*8 | F96: 1 | L96: 16.5 | M96: 16.5 | O96: 1855 | P96: 75 | Q96: 75 | R96: 1.855*0.075*0.075 | S96: 0.010
A97: 95 | B97: LSC4 | C97: 角钢支撑-4 | D97: L75*8 | F97: 1 | L97: 15.8 | M97: 15.8 | O97: 1769 | P97: 75 | Q97: 75 | R97: 1.769*0.075*0.075 | S97: 0.010
A98: 96 | B98: LSC5 | C98: 角钢支撑-5 | D98: L75*8 | F98: 1 | L98: 21.1 | M98: 21.1 | O98: 2398 | P98: 75 | Q98: 75 | R98: 2.398*0.075*0.075 | S98: 0.013
A99: 97 | B99: LSC6 | C99: 角钢支撑-6 | D99: L75*8 | F99: 1 | L99: 22.3 | M99: 22.3 | O99: 2537 | P99: 75 | Q99: 75 | R99: 2.537*0.075*0.075 | S99: 0.014
A100: 98 | B100: LSC7 | C100: 角钢支撑-7 | D100: L75*8 | F100: 1 | L100: 22.3 | M100: 22.3 | O100: 2537 | P100: 75 | Q100: 75 | R100: 2.537*0.075*0.075 | S100: 0.014
A101: 99 | B101: LSC8 | C101: 角钢支撑-8 | D101: L75*8 | F101: 2 | L101: 23.2 | M101: 46.4 | O101: 2645 | P101: 75 | Q101: 75 | R101: 2.645*0.075*0.075 | S101: 0.030
A102: 100 | B102: LSC9 | C102: 角钢支撑-9 | D102: L75*8 | F102: 2 | L102: 23.6 | M102: 47.2 | O102: 2703 | P102: 75 | Q102: 75 | R102: 2.703*0.075*0.075 | S102: 0.030
A103: 101 | B103: LSC10 | C103: 角钢支撑-10 | D103: L75*8 | F103: 1 | L103: 22.3 | M103: 22.3 | O103: 2542 | P103: 75 | Q103: 75 | R103: 2.542*0.075*0.075 | S103: 0.014
A104: 102 | B104: LSC11 | C104: 角钢支撑-11 | D104: L75*8 | F104: 2 | L104: 23.6 | M104: 47.2 | O104: 2703 | P104: 75 | Q104: 75 | R104: 2.703*0.075*0.075 | S104: 0.030
A105: 103 | B105: LSC12 | C105: 角钢支撑-12 | D105: L75*8 | F105: 2 | L105: 22.7 | M105: 45.4 | O105: 2589 | P105: 75 | Q105: 75 | R105: 2.589*0.075*0.075 | S105: 0.029
A106: 104 | B106: LSC13 | C106: 角钢支撑-13 | D106: L75*8 | F106: 2 | L106: 23.2 | M106: 46.4 | O106: 2645 | P106: 75 | Q106: 75 | R106: 2.645*0.075*0.075 | S106: 0.030
A107: 105 | B107: LSC14 | C107: 角钢支撑-14 | D107: L75*8 | F107: 1 | L107: 26.8 | M107: 26.8 | O107: 3070 | P107: 75 | Q107: 75 | R107: 3.07*0.075*0.075 | S107: 0.017
A108: 106 | B108: LSC15 | C108: 角钢支撑-15 | D108: L75*8 | F108: 1 | L108: 26.8 | M108: 26.8 | O108: 3070 | P108: 75 | Q108: 75 | R108: 3.07*0.075*0.075 | S108: 0.017
A109: 107 | B109: LSC16 | C109: 角钢支撑-16 | D109: L75*8 | F109: 1 | L109: 23.4 | M109: 23.4 | O109: 2661 | P109: 75 | Q109: 75 | R109: 2.661*0.075*0.075 | S109: 0.015
A110: 108 | B110: LSC17 | C110: 角钢支撑-17 | D110: L75*8 | F110: 1 | L110: 25.2 | M110: 25.2 | O110: 2877 | P110: 75 | Q110: 75 | R110: 2.877*0.075*0.075 | S110: 0.016
A111: 109 | B111: LSC18 | C111: 角钢支撑-18 | D111: L75*8 | F111: 2 | L111: 26.8 | M111: 53.6 | O111: 3065 | P111: 75 | Q111: 75 | R111: 3.065*0.075*0.075 | S111: 0.034
A112: 110 | B112: LSC19 | C112: 角钢支撑-19 | D112: L75*8 | F112: 1 | L112: 26.8 | M112: 26.8 | O112: 3065 | P112: 75 | Q112: 75 | R112: 3.065*0.075*0.075 | S112: 0.017
A113: 111 | B113: LSC20 | C113: 角钢支撑-20 | D113: L75*8 | F113: 1 | L113: 24.7 | M113: 24.7 | O113: 2819 | P113: 75 | Q113: 75 | R113: 2.819*0.075*0.075 | S113: 0.016
A114: 112 | B114: LSC21 | C114: 角钢支撑-21 | D114: L75*8 | F114: 1 | L114: 27.3 | M114: 27.3 | O114: 3173 | P114: 75 | Q114: 75 | R114: 3.173*0.075*0.075 | S114: 0.018
A115: 113 | B115: N4.5mPTL-1 | C115: 4.5米平台梁-1 | D115: HN200*100*5.5*8 | F115: 1 | L115: 26.5 | M115: 26.5 | O115: 1291 | P115: 200 | Q115: 100 | R115: 1.291*0.2*0.1 | S115: 0.026
A116: 114 | B116: N4.5mPTL-2 | C116: 4.5米平台梁-2 | D116: HN200*100*5.5*8 | F116: 2 | L116: 35.3 | M116: 70.6 | O116: 1720 | P116: 200 | Q116: 100 | R116: 1.72*0.2*0.1 | S116: 0.069
A117: 115 | B117: N4.5mPTL-3 | C117: 4.5米平台梁-3 | D117: HN200*100*5.5*8 | F117: 2 | L117: 26.6 | M117: 53.2 | O117: 1295 | P117: 200 | Q117: 100 | R117: 1.295*0.2*0.1 | S117: 0.052
A118: 116 | B118: N4.5mPTL-4 | C118: 4.5米平台梁-4 | D118: HN200*100*5.5*8 | F118: 2 | L118: 10.1 | M118: 20.2 | O118: 495 | P118: 200 | Q118: 100 | R118: 0.495*0.2*0.1 | S118: 0.020
A119: 117 | B119: N4.5mPTL-5 | C119: 4.5米平台梁-5 | D119: HN200*100*5.5*8 | F119: 1 | L119: 12.7 | M119: 12.7 | O119: 620 | P119: 200 | Q119: 100 | R119: 0.62*0.2*0.1 | S119: 0.012
A120: 118 | B120: N4.5mPTL-6 | C120: 4.5米平台梁-6 | D120: HN200*100*5.5*8 | F120: 1 | L120: 24.3 | M120: 24.3 | O120: 1185 | P120: 200 | Q120: 100 | R120: 1.185*0.2*0.1 | S120: 0.024
A121: 119 | B121: N4.5mPTL-7 | C121: 4.5米平台梁-7 | D121: HN200*100*5.5*8 | F121: 2 | L121: 93.2 | M121: 186.4 | O121: 4545 | P121: 200 | Q121: 100 | R121: 4.545*0.2*0.1 | S121: 0.182
A122: 120 | B122: N4.5mPTL-8 | C122: 4.5米平台梁-8 | D122: HN200*100*5.5*8 | F122: 1 | L122: 120.9 | M122: 120.9 | O122: 5895 | P122: 200 | Q122: 100 | R122: 5.895*0.2*0.1 | S122: 0.118
A123: 121 | B123: N4.5mPTL-9 | C123: 4.5米平台梁-9 | D123: HN200*100*5.5*8 | F123: 1 | L123: 92.2 | M123: 92.2 | O123: 4495 | P123: 200 | Q123: 100 | R123: 4.495*0.2*0.1 | S123: 0.090
A124: 122 | B124: N4.5mPTL-10 | C124: 4.5米平台梁-10 | D124: HN200*100*5.5*8 | F124: 1 | L124: 80.4 | M124: 80.4 | O124: 3920 | P124: 200 | Q124: 100 | R124: 3.92*0.2*0.1 | S124: 0.078
A125: 123 | B125: N4.5mPTL-11 | C125: 4.5米平台梁-11 | D125: HN200*100*5.5*8 | F125: 1 | L125: 87.6 | M125: 87.6 | O125: 4270 | P125: 200 | Q125: 100 | R125: 4.27*0.2*0.1 | S125: 0.085
A126: 124 | B126: N4.5mPTL-12 | C126: 4.5米平台梁-12 | D126: HN300*150*6.5*9 | F126: 2 | L126: 208.9 | M126: 417.8 | O126: 5870 | P126: 300 | Q126: 150 | R126: 5.87*0.3*0.15 | S126: 0.528
A127: 125 | B127: N4.5mPTL-13 | C127: 4.5米平台梁-13 | D127: HN300*150*6.5*9 | F127: 2 | L127: 205.3 | M127: 410.6 | O127: 5770 | P127: 300 | Q127: 150 | R127: 5.77*0.3*0.15 | S127: 0.519
A128: 126 | B128: N4.5mPTL-14 | C128: 4.5米平台梁-14 | D128: HN300*150*6.5*9 | F128: 1 | L128: 146.6 | M128: 146.6 | O128: 4120 | P128: 300 | Q128: 150 | R128: 4.12*0.3*0.15 | S128: 0.185
A129: 127 | B129: N4.5mPTL-15 | C129: 4.5米平台梁-15 | D129: HN300*150*6.5*9 | F129: 1 | L129: 150.5 | M129: 150.5 | O129: 4120 | P129: 245 | Q129: 300 | R129: 4.12*0.245*0.3 | S129: 0.303
A130: 128 | B130: N4.5mPTL-16 | C130: 4.5米平台梁-16 | D130: HN300*150*6.5*9 | F130: 1 | L130: 134.2 | M130: 134.2 | O130: 3770 | P130: 300 | Q130: 150 | R130: 3.77*0.3*0.15 | S130: 0.170
A131: 129 | B131: N4.5mPTL-17 | C131: 4.5米平台梁-17 | D131: HN300*150*6.5*9 | F131: 1 | L131: 141.9 | M131: =F131*L131 -> 141.9 | O131: 3770 | P131: 245 | Q131: 300 | R131: 3.77*0.245*0.3 | S131: =O131*P131*Q131/1000000000*F131 -> 0.277
A132: 130 | B132: N4.5mPTL-18 | C132: 4.5米平台梁-18 | D132: HN300*150*6.5*9 | F132: 1 | L132: 147.1 | M132: 147.1 | O132: 3770 | P132: 340 | Q132: 300 | R132: 3.77*0.34*0.3 | S132: 0.385
A133: 131 | B133: N4.5mPTL-19 | C133: 4.5米平台梁-19 | D133: HN300*150*6.5*9 | F133: 1 | L133: 166.2 | M133: 166.2 | O133: 4420 | P133: 235 | Q133: 300 | R133: 4.42*0.235*0.3 | S133: 0.312
A134: 132 | B134: N4.5mPTL-20 | C134: 4.5米平台梁-20 | D134: HN300*150*6.5*9 | F134: 1 | L134: 162.9 | M134: 162.9 | O134: 4420 | P134: 320 | Q134: 300 | R134: 4.42*0.32*0.3 | S134: 0.424
A135: 133 | B135: N4.5mPTL-21 | C135: 4.5米平台梁-21 | D135: HN300*150*6.5*9 | F135: 2 | L135: 188.4 | M135: 376.8 | O135: 5295 | P135: 300 | Q135: 150 | R135: 5.295*0.3*0.15 | S135: 0.477
A136: 134 | B136: N4.5mPTL-22 | C136: 4.5米平台梁-22 | D136: HN300*150*6.5*9 | F136: 1 | L136: 124.9 | M136: 124.9 | O136: 3294 | P136: 245 | Q136: 300 | R136: 3.294*0.245*0.3 | S136: 0.242
A137: 135 | B137: N4.5mPTL-23 | C137: 4.5米平台梁-23 | D137: HN300*150*6.5*9 | F137: 2 | L137: 171.8 | M137: 343.6 | O137: 4681 | P137: 340 | Q137: 300 | R137: 4.681*0.34*0.3 | S137: 0.955
A138: 136 | B138: N4.5mPTL-24 | C138: 4.5米平台梁-24 | D138: HN300*150*6.5*9 | F138: 1 | L138: 29.2 | M138: 29.2 | O138: 820 | P138: 300 | Q138: 150 | R138: 0.82*0.3*0.15 | S138: 0.037
A139: 137 | B139: N4.5mPTL-25 | C139: 4.5米平台梁-25 | D139: HN300*150*6.5*9 | F139: 1 | L139: 47 | M139: 47 | O139: 1320 | P139: 300 | Q139: 150 | R139: 1.32*0.3*0.15 | S139: 0.059
A140: 138 | B140: N4.5mPTL-26 | C140: 4.5米平台梁-26 | D140: HN300*150*6.5*9 | F140: 1 | L140: 189.2 | M140: 189.2 | O140: 5170 | P140: 340 | Q140: 300 | R140: 5.17*0.34*0.3 | S140: 0.527
A141: 139 | B141: N4.5mPTL-27 | C141: 4.5米平台梁-27 | D141: HN300*150*6.5*9 | F141: 4 | L141: 244.1 | M141: 976.4 | O141: 6860 | P141: 300 | Q141: 150 | R141: 6.86*0.3*0.15 | S141: 1.235
A142: 140 | B142: N4.5mPTL-28 | C142: 4.5米平台梁-28 | D142: HN300*150*6.5*9 | F142: 1 | L142: 48.8 | M142: 48.8 | O142: 1371 | P142: 300 | Q142: 150 | R142: 1.371*0.3*0.15 | S142: 0.062
A143: 141 | B143: N4.5mPTL-29 | C143: 4.5米平台梁-29 | D143: HN300*150*6.5*9 | F143: 4 | L143: 159.1 | M143: 636.4 | O143: 4470 | P143: 300 | Q143: 150 | R143: 4.47*0.3*0.15 | S143: 0.805
A144: 142 | B144: N4.5mPTL-30 | C144: 4.5米平台梁-30 | D144: HN300*150*6.5*9 | F144: 2 | L144: 59.4 | M144: 118.8 | O144: 1670 | P144: 300 | Q144: 150 | R144: 1.67*0.3*0.15 | S144: 0.150
A145: 143 | B145: N4.5mPTL-31 | C145: 4.5米平台梁-31 | D145: HN300*150*6.5*9 | F145: 1 | L145: 211.6 | M145: 211.6 | O145: 5947 | P145: 300 | Q145: 150 | R145: 5.947*0.3*0.15 | S145: 0.268
A146: 144 | B146: N4.5mPTL-32 | C146: 4.5米平台梁-32 | D146: HN300*150*6.5*9 | F146: 1 | L146: 213.3 | M146: 213.3 | O146: 5995 | P146: 300 | Q146: 150 | R146: 5.995*0.3*0.15 | S146: 0.270
A147: 145 | B147: N4.5mPTL-33 | C147: 4.5米平台梁-33 | D147: HN300*150*6.5*9 | F147: 2 | L147: 97.6 | M147: 195.2 | O147: 2742 | P147: 300 | Q147: 150 | R147: 2.742*0.3*0.15 | S147: 0.247
A148: 146 | B148: N4.5mPTL-34 | C148: 4.5米平台梁-34 | D148: HN300*150*6.5*9 | F148: 1 | L148: 124.2 | M148: 124.2 | O148: 3273 | P148: 245 | Q148: 300 | R148: 3.273*0.245*0.3 | S148: 0.241
A149: 147 | B149: N4.5mPTL-35 | C149: 4.5米平台梁-35 | D149: HN300*150*6.5*9 | F149: 4 | L149: 85.4 | M149: 341.6 | O149: 2401 | P149: 300 | Q149: 150 | R149: 2.401*0.3*0.15 | S149: 0.432
A150: 148 | B150: N4.5mPTL-36 | C150: 4.5米平台梁-36 | D150: HN300*150*6.5*9 | F150: 1 | L150: 194.6 | M150: 194.6 | O150: 5470 | P150: 300 | Q150: 150 | R150: 5.47*0.3*0.15 | S150: 0.246
A151: 149 | B151: N4.5mPTL-37 | C151: 4.5米平台梁-37 | D151: HN300*150*6.5*9 | F151: 1 | L151: 192.7 | M151: 192.7 | O151: 5416 | P151: 300 | Q151: 150 | R151: 5.416*0.3*0.15 | S151: 0.244
A152: 150 | B152: N4.5mPTL-38 | C152: 4.5米平台梁-38 | D152: HN300*150*6.5*9 | F152: 1 | L152: 30.1 | M152: 30.1 | O152: 775 | P152: 235 | Q152: 300 | R152: 0.775*0.235*0.3 | S152: 0.055
A153: 151 | B153: N4.5mPTL-39 | C153: 4.5米平台梁-39 | D153: HN300*150*6.5*9 | F153: 1 | L153: 30.1 | M153: 30.1 | O153: 775 | P153: 235 | Q153: 300 | R153: 0.775*0.235*0.3 | S153: 0.055
A154: 152 | B154: N4.5mPTL-40 | C154: 4.5米平台梁-40 | D154: HN300*150*6.5*9 | F154: 2 | L154: 42.5 | M154: 85 | O154: 1195 | P154: 300 | Q154: 150 | R154: 1.195*0.3*0.15 | S154: 0.108
A155: 153 | B155: N4.5mPTL-41 | C155: 4.5米平台梁-41 | D155: HN300*150*6.5*9 | F155: 1 | L155: 77.8 | M155: 77.8 | O155: 2045 | P155: 235 | Q155: 300 | R155: 2.045*0.235*0.3 | S155: 0.144
A156: 154 | B156: N4.5mPTL-42 | C156: 4.5米平台梁-42 | D156: HN300*150*6.5*9 | F156: 1 | L156: 81.5 | M156: 81.5 | O156: 2150 | P156: 235 | Q156: 300 | R156: 2.15*0.235*0.3 | S156: 0.152
A157: 155 | B157: N4.5mPTL-43 | C157: 4.5米平台梁-43 | D157: HN300*150*6.5*9 | F157: 3 | L157: 53.9 | M157: 161.7 | O157: 1459 | P157: 320 | Q157: 420 | R157: 1.459*0.32*0.42 | S157: 0.588
A158: 156 | B158: N4.5mPTL-44 | C158: 4.5米平台梁-44 | D158: HN300*150*6.5*9 | F158: 2 | L158: 55 | M158: 110 | O158: 1459 | P158: 330 | Q158: 420 | R158: 1.459*0.33*0.42 | S158: 0.404
A159: 157 | B159: N4.5mPTL-45 | C159: 4.5米平台梁-45 | D159: HN300*150*6.5*9 | F159: 1 | L159: 55.3 | M159: 55.3 | O159: 1459 | P159: 340 | Q159: 300 | R159: 1.459*0.34*0.3 | S159: 0.149
A160: 158 | B160: N4.5mPTL-46 | C160: 4.5米平台梁-46 | D160: HN300*150*6.5*9 | F160: 1 | L160: 21.5 | M160: 21.5 | O160: 535 | P160: 235 | Q160: 300 | R160: 0.535*0.235*0.3 | S160: 0.038
A161: 159 | B161: N4.5mPTL-47 | C161: 4.5米平台梁-47 | D161: HN300*150*6.5*9 | F161: 1 | L161: 116.5 | M161: 116.5 | O161: 3273 | P161: 300 | Q161: 150 | R161: 3.273*0.3*0.15 | S161: 0.147
A162: 160 | B162: N4.5mPTL-48 | C162: 4.5米平台梁-48 | D162: HN400*200*8*13 | F162: 1 | L162: 337.4 | M162: 337.4 | O162: 5263 | P162: 400 | Q162: 200 | R162: 5.263*0.4*0.2 | S162: 0.421
A163: 161 | B163: N4.5mPTL-49 | C163: 4.5米平台梁-49 | D163: HN400*200*8*13 | F163: 1 | L163: 447 | M163: 447 | O163: 6869 | P163: 295 | Q163: 400 | R163: 6.869*0.295*0.4 | S163: 0.811
A164: 162 | B164: N4.5mPTL-50 | C164: 4.5米平台梁-50 | D164: HN400*200*8*13 | F164: 1 | L164: 443.6 | M164: 443.6 | O164: 6844 | P164: 285 | Q164: 400 | R164: 6.844*0.285*0.4 | S164: 0.780
A165: 163 | B165: N4.5mPTL-51 | C165: 4.5米平台梁-51 | D165: HN400*200*8*13 | F165: 1 | L165: 445.4 | M165: 445.4 | O165: 6844 | P165: 295 | Q165: 400 | R165: 6.844*0.295*0.4 | S165: 0.808
A166: 164 | B166: N4.5mPTL-52 | C166: 4.5米平台梁-52 | D166: HN400*200*8*13 | F166: 1 | L166: 244.1 | M166: 244.1 | O166: 3804 | P166: 400 | Q166: 200 | R166: 3.804*0.4*0.2 | S166: 0.304
A167: 165 | B167: N4.5mPTL-53 | C167: 4.5米平台梁-53 | D167: HN400*200*8*13 | F167: 1 | L167: 38.9 | M167: 38.9 | O167: 2513 | P167: 428 | Q167: 400 | R167: 2.513*0.428*0.4 | S167: 0.430
A168: 166 | B168: N4.5mPTL-54 | C168: 4.5米平台梁-54 | D168: HN400*200*8*13 | F168: 1 | L168: 33.9 | M168: 33.9 | O168: 444 | P168: 295 | Q168: 400 | R168: 0.444*0.295*0.4 | S168: 0.052
A169: 167 | B169: N4.5mPTL-55 | C169: 4.5米平台梁-55 | D169: HN400*200*8*13 | F169: 1 | L169: 445.4 | M169: 445.4 | O169: 6844 | P169: 295 | Q169: 400 | R169: 6.844*0.295*0.4 | S169: 0.808
A170: 168 | B170: N4.5mPTL-56 | C170: 4.5米平台梁-56 | D170: HN400*200*8*13 | F170: 1 | L170: 368 | M170: 368 | O170: 5738 | P170: 400 | Q170: 200 | R170: 5.738*0.4*0.2 | S170: 0.459
A171: 169 | B171: N4.5mPTL-57 | C171: 4.5米平台梁-57 | D171: HN400*200*8*13 | F171: 1 | L171: 374.4 | M171: 374.4 | O171: 5838 | P171: 400 | Q171: 200 | R171: 5.838*0.4*0.2 | S171: 0.467
A172: 170 | B172: N4.5mPTL-58 | C172: 4.5米平台梁-58 | D172: HN400*200*8*13 | F172: 1 | L172: 340.6 | M172: 340.6 | O172: 5313 | P172: 400 | Q172: 200 | R172: 5.313*0.4*0.2 | S172: 0.425
A173: 171 | B173: N4.5mPTL-59 | C173: 4.5米平台梁-59 | D173: HN400*200*8*13 | F173: 1 | L173: 286.7 | M173: 286.7 | O173: 4413 | P173: 285 | Q173: 400 | R173: 4.413*0.285*0.4 | S173: 0.503
A174: 172 | B174: N4.5mPTL-60 | C174: 4.5米平台梁-60 | D174: HN400*200*8*13 | F174: 1 | L174: 288.6 | M174: 288.6 | O174: 4413 | P174: 295 | Q174: 400 | R174: 4.413*0.295*0.4 | S174: 0.521
A175: 173 | B175: N4.5mPTL-61 | C175: 4.5米平台梁-61 | D175: HN400*200*8*13 | F175: 1 | L175: 261.8 | M175: 261.8 | O175: 4088 | P175: 400 | Q175: 200 | R175: 4.088*0.4*0.2 | S175: 0.327
A176: 174 | B176: N4.5mPTL-62 | C176: 4.5米平台梁-62 | D176: HN400*200*8*13 | F176: 1 | L176: 267.7 | M176: 267.7 | O176: 4088 | P176: 295 | Q176: 400 | R176: 4.088*0.295*0.4 | S176: 0.482
A177: 175 | B177: N4.5mPTL-63 | C177: 4.5米平台梁-63 | D177: HN400*200*8*13 | F177: 1 | L177: 251 | M177: 251 | O177: 3738 | P177: 295 | Q177: 400 | R177: 3.738*0.295*0.4 | S177: 0.441
A178: 176 | B178: N4.5mPTL-64 | C178: 4.5米平台梁-64 | D178: HN400*200*8*13 | F178: 4 | L178: 286 | M178: 1144 | O178: 4463 | P178: 400 | Q178: 200 | R178: 4.463*0.4*0.2 | S178: 1.428
A179: 177 | B179: N4.5mPTL-65 | C179: 4.5米平台梁-65 | D179: HN400*200*8*13 | F179: 4 | L179: 441.1 | M179: 1764.4 | O179: 6860 | P179: 400 | Q179: 200 | R179: 6.86*0.4*0.2 | S179: 2.195
A180: 178 | B180: N4.5mPTL-66 | C180: 4.5米平台梁-66 | D180: HN400*200*8*13 | F180: 1 | L180: 312.7 | M180: 312.7 | O180: 4681 | P180: 295 | Q180: 400 | R180: 4.681*0.295*0.4 | S180: 0.552
A181: 179 | B181: N4.5mPTL-67 | C181: 4.5米平台梁-67 | D181: HN400*200*8*13 | F181: 1 | L181: 306.9 | M181: 306.9 | O181: 4681 | P181: 295 | Q181: 400 | R181: 4.681*0.295*0.4 | S181: 0.552
A182: 180 | B182: N4.5mPTL-68 | C182: 4.5米平台梁-68 | D182: HN400*200*8*13 | F182: 2 | L182: 343.7 | M182: 687.4 | O182: 5345 | P182: 400 | Q182: 200 | R182: 5.345*0.4*0.2 | S182: 0.855
A183: 181 | B183: N4.5mPTL-69 | C183: 4.5米平台梁-69 | D183: HM488*300*11*18 | F183: 1 | L183: 611.4 | M183: 611.4 | O183: 4665 | P183: 500 | Q183: 488 | R183: 4.665*0.5*0.488 | S183: 1.138
A184: 182 | B184: N4.5mPTL-70 | C184: 4.5米平台梁-70 | D184: HM488*300*11*18 | F184: 1 | L184: 596.9 | M184: 596.9 | O184: 4665 | P184: 490 | Q184: 488 | R184: 4.665*0.49*0.488 | S184: 1.115
A185: 183 | B185: N4.5mPTL-71 | C185: 4.5米平台梁-71 | D185: HM488*300*11*18 | F185: 1 | L185: 978.7 | M185: 978.7 | O185: 7754 | P185: 495 | Q185: 488 | R185: 7.754*0.495*0.488 | S185: 1.873
A186: 184 | B186: N4.5mPTL-72 | C186: 4.5米平台梁-72 | D186: HM488*300*11*18 | F186: 1 | L186: 988.2 | M186: 988.2 | O186: 7754 | P186: 495 | Q186: 488 | R186: 7.754*0.495*0.488 | S186: 1.873
A187: 185 | B187: N4.5mPTL-73 | C187: 4.5米平台梁-73 | D187: HM488*300*11*18 | F187: 1 | L187: 991 | M187: 991 | O187: 7854 | P187: 495 | Q187: 488 | R187: 7.854*0.495*0.488 | S187: 1.897
A188: 186 | B188: N4.5mPTL-74 | C188: 4.5米平台梁-74 | D188: HM488*300*11*18 | F188: 2 | L188: 655.7 | M188: 1311.4 | O188: 5138 | P188: 490 | Q188: 488 | R188: 5.138*0.49*0.488 | S188: 2.457
A189: 187 | B189: N4.5mPTL-75 | C189: 4.5米平台梁-75 | D189: HM488*300*11*18 | F189: 1 | L189: 677.4 | M189: 677.4 | O189: 5284 | P189: 405 | Q189: 488 | R189: 5.284*0.405*0.488 | S189: 1.044
A190: 188 | B190: N4.5mPTL-76 | C190: 4.5米平台梁-76 | D190: HM488*300*11*18 | F190: 1 | L190: 704.9 | M190: 704.9 | O190: 5284 | P190: 470 | Q190: 488 | R190: 5.284*0.47*0.488 | S190: 1.212
A191: 189 | B191: N4.5mPTL-77 | C191: 4.5米平台梁-77 | D191: HM488*300*11*18 | F191: 1 | L191: 683.3 | M191: 683.3 | O191: 5284 | P191: 490 | Q191: 488 | R191: 5.284*0.49*0.488 | S191: 1.264
A192: 190 | B192: N4.5mPTL-78 | C192: 4.5米平台梁-78 | D192: HM488*300*11*18 | F192: 1 | L192: 880.4 | M192: 880.4 | O192: 6900 | P192: 495 | Q192: 488 | R192: 6.9*0.495*0.488 | S192: 1.667
A193: 191 | B193: N4.5mPTL-79 | C193: 4.5米平台梁-79 | D193: HM488*300*11*18 | F193: 1 | L193: 880.4 | M193: 880.4 | O193: 6900 | P193: 495 | Q193: 488 | R193: 6.9*0.495*0.488 | S193: 1.667
A194: 192 | B194: N4.5mPTL-80 | C194: 4.5米平台梁-80 | D194: HM488*300*11*18 | F194: 1 | L194: 880.4 | M194: 880.4 | O194: 6900 | P194: 495 | Q194: 488 | R194: 6.9*0.495*0.488 | S194: 1.667
A195: 193 | B195: N4.5mPTL-81 | C195: 4.5米平台梁-81 | D195: HM488*300*11*18 | F195: 1 | L195: 892.7 | M195: =F195*L195 -> 892.7 | O195: 6900 | P195: 495 | Q195: 488 | R195: 6.9*0.495*0.488 | S195: =O195*P195*Q195/1000000000*F195 -> 1.667
A196: 194 | B196: N4.5mPTL-82 | C196: 4.5米平台梁-82 | D196: HM488*300*11*18 | F196: 1 | L196: 895.5 | M196: 895.5 | O196: 6900 | P196: 495 | Q196: 488 | R196: 6.9*0.495*0.488 | S196: 1.667
A197: 195 | B197: N4.5mPTL-83 | C197: 4.5米平台梁-83 | D197: HM488*300*11*18 | F197: 1 | L197: 895.5 | M197: 895.5 | O197: 6900 | P197: 490 | Q197: 488 | R197: 6.9*0.49*0.488 | S197: 1.650
A198: 196 | B198: N4.5mPTL-84 | C198: 4.5米平台梁-84 | D198: HM488*300*11*18 | F198: 1 | L198: 940.5 | M198: 940.5 | O198: 7213 | P198: 510 | Q198: 488 | R198: 7.213*0.51*0.488 | S198: 1.795
A199: 197 | B199: N4.5mPTL-85 | C199: 4.5米平台梁-85 | D199: HM488*300*11*18 | F199: 1 | L199: 971.4 | M199: 971.4 | O199: 7313 | P199: 500 | Q199: 488 | R199: 7.313*0.5*0.488 | S199: 1.784
A200: 198 | B200: N4.5mPTL-86 | C200: 4.5米平台梁-86 | D200: HM488*300*11*18 | F200: 1 | L200: 686.4 | M200: 686.4 | O200: 5309 | P200: 490 | Q200: 488 | R200: 5.309*0.49*0.488 | S200: 1.269
... 1177 more rows
